Cogmind - Beta 16 @@@ ROGUE MODE // 2025.10.26 @ 02:53:20 Player: kiul Result: Destroyed by H-77 Assassin with Coil Gun Performance ------------- Evolutions (7) 3500 Regions Visited (12) 2400 Robots Destroyed (151) 755 Value Destroyed (7140) 7140 Prototype IDs (9) 180 Alien Tech Used (0) 0 Bonus (1309) 1309 TOTAL SCORE: 15284 Bonus ------- High Alert Combat Kills 109 Entered Garrisons 200 Entered DSFs 500 Scanned by Researcher 500 Cogmind --------- Core Integrity 0/1300 Matter 239/300 Energy 100/100 System Corruption 5% Temperature Cool (0) Movement Core (50) Location -3/Testing Parts ------- > --- POWER (2) -------- (None) > --- PROPULSION (5) --- (None) > --- UTILITY (11) ----- Graphene Brace > --- WEAPON (3) ------- (None) > --- INVENTORY (5) ---- Huge Storage Unit Medium Matter Pod (60) Point Defense System Peak State ------------ > --- POWER ------------ Neutrino Core Micro Fission Core > --- PROPULSION ------- Improved Treads Nuclear Pulse Array > --- UTILITY ---------- Advanced Cryofiber Web Advanced Heat Sink Advanced Sensor Array Advanced Signal Interpreter Improved Medium Armor Plating Graphene Brace Improved Shield Generator Hacking Suite > --- WEAPON ----------- Phase Gun Long-range Proton Cannon Matter Neutralizer > --- INVENTORY -------- Angular Momentum Engine Advanced Cryofiber Web Huge Storage Unit Medium Matter Pod Power Sword [Rating: 87] Favorites ----------- Power Deuterium Engine Engine Deuterium Engine Power Core Fission Core Propulsion Armored Treads Treads Armored Treads Leg Aluminum Leg Flight Unit Nuclear Pulse Array Utility Huge Storage Unit Device Graphene Brace Storage Huge Storage Unit Processor Advanced Signal Interpreter Hackware System Shield Protection Powered Armor Weapon Precision Beam Rifle Energy Gun Precision Beam Rifle Energy Cannon Heavy Phase Cannon Ballistic Gun Improved Assault Rifle Ballistic Cannon Magnetic Acceleration Cannon Launcher Mini Grenade Launcher Slashing Weapon Power Sword Build | -11 -10 -9 -8 -7 -7 -7 -6 -5 -5 -4 -3 -3 ------- Run | Yrd Mat Mat Mat Fac DSF Gar Fac Fac Ext Fac Res Tes Slots Evolved 14 | . . 2 2 2 . . 2 2 . 2 2 . Power 1 | . . . . . . . 1 . . . . . Propulsion 3 | . . 1 . . . . . 1 . 1 . . Utility 9 | . . 1 2 2 . . 1 1 . . 2 . Weapon 1 | . . . . . . . . . . 1 . . Parts Attached 152 | 6 2 24 18 . 14 7 20 15 17 22 5 2 Power 23 | 1 1 5 1 . 1 . 4 2 4 3 1 . Engine 12 | 1 1 5 1 . 1 . 1 . 2 . . . Core 11 | . . . . . . . 3 2 2 3 1 . Reactor . | . . . . . . . . . . . . . Propulsion 33 | 2 . 6 4 . 5 1 5 4 2 2 2 . Treads 29 | 2 . 4 4 . 5 1 5 4 1 1 2 . Leg 2 | . . 2 . . . . . . . . . . Wheel . | . . . . . . . . . . . . . Hover . | . . . . . . . . . . . . . Flight 2 | . . . . . . . . . 1 1 . . Utility 56 | 1 . 4 7 . 5 4 8 8 4 14 1 . Device 24 | . . 1 2 . 2 1 5 4 1 7 1 . Storage 4 | 1 . 2 . . . . . . . 1 . . Processor 6 | . . . . . . . . 2 . 4 . . Hackware 4 | . . . . . . . 2 1 1 . . . Protection 18 | . . 1 5 . 3 3 1 1 2 2 . . Artifact . | . . . . . . . . . . . . . Weapon 40 | 2 1 9 6 . 3 2 3 1 7 3 1 2 Energy Gun 15 | . 1 4 3 . . 1 1 . 1 2 . 2 Energy Cannon 5 | . . 1 . . . . . 1 2 1 . . Ballistic Gun 7 | 2 . 2 . . . . . . 3 . . . Ballistic Cannon 8 | . . 1 1 . 3 1 1 . . . 1 . Launcher 4 | . . 1 2 . . . 1 . . . . . Special Weapon . | . . . . . . . . . . . . . Impact Weapon . | . . . . . . . . . . . . . Slashing Weapon 1 | . . . . . . . . . 1 . . . Piercing Weapon . | . . . . . . . . . . . . . Special Melee Weapon . | . . . . . . . . . . . . . Unidentified Prototypes 9 | . . 4 3 . . . 1 . . . . 1 Parts Lost 86 | . . 5 2 . 1 4 7 15 21 24 2 5 Power 14 | . . . 1 . 1 . . 4 3 4 1 . Propulsion 20 | . . 3 1 . . 1 2 3 5 3 . 2 Utility 31 | . . 1 . . . 2 5 5 5 12 . 1 Weapon 21 | . . 1 . . . 1 . 3 8 5 1 2 Highest Loss Streak 13 | . . 3 1 . 1 3 4 11 7 13 1 3 To Critical Strikes . | . . . . . . . . . . . . . Average Backups 16 | . 1 12 22 25 24 21 23 17 9 3 3 3 Power 2 | . . 2 2 2 1 2 2 1 1 . . . Propulsion 2 | . . . 4 5 4 3 3 1 . . . . Utility 5 | . . 2 5 10 10 9 7 5 2 2 2 3 Weapon 7 | . 1 6 10 8 7 7 9 9 6 . . . Tool/Special . | . . . . . . . . . . . . . Unused Backups 24 | . . 6 4 . 4 2 3 1 1 2 . 1 Power . | . . . . . . . . . . . . . Propulsion 3 | . . . . . 3 . . . . . . . Utility 14 | . . 3 1 . . 2 3 1 1 2 . 1 Weapon 7 | . . 3 3 . 1 . . . . . . . Tool/Special . | . . . . . . . . . . . . . Average Slot Usage (%) 85 | . 85 86 94 84 91 94 97 96 69 55 19 13 Engine 4 | . 14 11 8 7 7 7 . 2 3 2 . . Core 5 | . . . . . . . 12 7 4 4 2 . Treads 18 | . 28 14 26 23 23 22 19 22 14 3 4 2 Leg 1 | . . 13 . . . . . . . . . . Device 19 | . . 8 17 15 18 23 26 21 18 16 3 4 Storage 6 | . 14 11 9 7 7 7 6 5 3 . . . Processor 2 | . . . . . . . . 5 7 6 4 3 Hackware 4 | . . . . . . . 7 10 1 3 . . Protection 7 | . . 5 13 15 18 18 9 5 3 3 . . Energy Gun 4 | . 7 7 7 7 7 6 6 2 . 2 . 1 Energy Cannon 1 | . . 3 1 . . . . 2 1 4 . . Ballistic Gun 1 | . 20 4 2 . . . . . 1 . . . Ballistic Cannon 4 | . . 6 4 . 3 3 5 4 3 . 2 . Peak Build Rating 87 | 6 6 19 37 37 56 57 73 82 82 87 33 41 Average Rating 53 | 4 6 15 32 37 47 54 66 78 57 61 26 19 On Entrance 34 | . 6 6 18 37 37 56 54 72 82 42 7 27 Avg Prop Armor Cover (%) 6 | . . 9 . . . . . . . 3 . . Naked Turns . | . . . . . . . . . . . . . Heaviest Build 144 | 12 14 97 110 107 134 133 144 137 137 67 15 14 Greatest Support 104 | 40 40 60 66 66 66 60 60 104 104 23 65 65 Greatest Overweight (x) 6 | . . 2 1 1 2 2 3 2 6 4 . 2 Average Overweight (x) 1 | . . 1 1 1 1 2 1 1 . . . . Largest Inventory Capacity 25 | 8 8 25 25 25 25 25 25 25 25 25 25 5 Average Capacity 20 | 7 8 16 25 25 25 25 25 25 20 5 5 5 Most Carried 25 | 1 4 17 25 25 25 25 25 24 13 5 4 3 Average Carried 16 | . 1 12 22 25 24 21 23 17 9 3 3 3 Final Capacity 25 | 8 8 25 25 25 25 25 25 25 5 5 5 5 Final Carried 25 | 1 4 17 25 25 25 21 24 13 5 5 3 3 Class Distribution -------------------- 44% | Mutant 28% | Scavenger-Mutant 16% | Hacker-Mutant 5% | Skirmisher 3% | Hacker-Skirmisher Dominant Class ---------------- Mutant | -10/Materials Scavenger-Mutant | -9/Materials Mutant | -8/Materials Mutant | -7/Factory Mutant | -7/DSF Scavenger-Mutant | -7/Garrison Mutant | -6/Factory Hacker-Mutant | -5/Factory Mutant | -5/Extension Scavenger-Mutant | -4/Factory Mutant | -3/Research Mutant | -3/Testing Resources | -11 -10 -9 -8 -7 -7 -7 -6 -5 -5 -4 -3 -3 ----------- Run | Yrd Mat Mat Mat Fac DSF Gar Fac Fac Ext Fac Res Tes Matter Collected 4563 | 175 183 575 427 . 235 228 862 820 636 382 40 . Remotely 477 | . . . . . . . 293 . 184 . . . Salvage Created 5813 | . 196 862 525 . 314 348 881 1079 793 744 71 . Parts 252 | . 12 51 19 . 16 26 38 35 23 26 6 . Haulers Intercepted 6 | . . 3 1 . . . . . 2 . . . Recyclers Shooed 4 | . . . . . . . 4 . . . . . Parts Field Recycled . | . . . . . . . . . . . . . Retrieved Matter . | . . . . . . . . . . . . . Parts Self-Destructed . | . . . . . . . . . . . . . Prevented . | . . . . . . . . . . . . . Parts Restored . | . . . . . . . . . . . . . Kills | -11 -10 -9 -8 -7 -7 -7 -6 -5 -5 -4 -3 -3 ------- Run | Yrd Mat Mat Mat Fac DSF Gar Fac Fac Ext Fac Res Tes Combat Hostiles Destroyed 134 | . 7 22 12 . 9 18 21 17 15 11 2 . Melee 3 | . . . . . . . . . . 3 . . Guns 43 | . 7 10 3 . 3 1 9 2 7 1 . . Cannons 46 | . . 10 6 . 2 2 6 11 2 5 2 . AOE 36 | . . 2 3 . 4 15 4 4 4 . . . Classes Destroyed 18 | . 2 2 1 . 2 1 4 2 1 3 . . Worker 1 | . . . . . . . . . . 1 . . Builder 4 | . . . . . . . 1 1 2 . . . Hauler 6 | . . 3 1 . . . . . 2 . . . Recycler 3 | . . . . . . . . 2 1 . . . Mechanic 1 | . . . . . . . 1 . . . . . Watcher 2 | . . . . . . . 2 . . . . . Swarmer 20 | . 3 3 . . 3 8 . . 3 . . . Cutter 2 | . . . . . . 2 . . . . . . Saboteur 1 | . . . . . . . . . . 1 . . Grunt 47 | . 4 15 8 . 2 4 5 . 4 5 . . Brawler 1 | . . . . . . . . . . 1 . . Protector 1 | . . . . . . . . 1 . . . . Sentry 16 | . . 4 3 . . . 1 3 4 1 . . Specialist 4 | . . . . . 2 . . 2 . . . . Hunter 18 | . . . 1 . 1 4 6 4 2 . . . Programmer 20 | . . . . . . . 8 7 . 3 2 . Heavy 2 | . . . . . 1 . 1 . . . . . Behemoth 2 | . . . . . . . . . 2 . . . Best Kill Streak 8 | . 3 4 8 . 5 8 5 7 7 5 2 . Combat Bots Only 8 | . 3 4 8 . 5 8 4 5 5 4 2 . Max Kills in Single Turn 4 | . 1 3 1 . 3 3 2 4 3 2 1 . Gunslinging . | . . . . . . . . . . . . . Exploded 3 | . . 2 1 . 3 3 2 3 2 . . . Melee 1 | . . . . . . . . . . 1 . . Uniques/NPCs Destroyed . | . . . . . . . . . . . . . Combat | -11 -10 -9 -8 -7 -7 -7 -6 -5 -5 -4 -3 -3 -------- Run | Yrd Mat Mat Mat Fac DSF Gar Fac Fac Ext Fac Res Tes Hostile Shots Fired 1615 | . 34 108 72 . 57 121 244 243 171 208 37 320 Missed 528 | . 8 35 18 . 27 40 79 77 56 71 10 107 Hits 1087 | . 26 73 54 . 30 81 165 166 115 137 27 213 Melee 13 | . . . . . . 2 . . . 11 . . Projectile 1074 | . 26 73 54 . 30 79 165 166 115 126 27 213 AOE 4 | . . . . . . 2 . . . 2 . . Critical Strikes 26 | . . 1 3 . 1 3 2 6 . 8 1 1 Actively Blocked 14 | . . . . . . 3 2 6 . 1 1 1 Part Disruptions 2 | . . . . . . . . 1 . . 1 . Damage Taken 18073 | . 271 891 842 . 841 1503 2427 2939 2771 3117 595 1876 Core 3841 | . 53 87 52 . 75 49 177 326 610 1109 115 1188 Absorbed by Shields 992 | . . . . . . . 326 565 20 81 . . Ignored by Resistances 24 | . . . . . 6 18 . . . . . . Core Remaining (%) 64 | 100 78 78 90 . . 82 79 . 6 3 . . Volleys Fired 425 | . 16 65 26 . 28 31 103 57 59 27 11 2 Largest 3 | . 2 2 2 . 2 2 2 2 2 3 1 2 Hottest 274 | . 70 105 98 . 98 105 111 134 136 274 47 174 Shots Fired 763 | . 32 128 52 . 49 57 174 103 104 50 11 3 Gun 417 | . 32 79 26 . 28 26 102 31 63 27 . 3 Cannon 303 | . . 48 22 . 16 12 67 70 34 23 11 . Launcher 43 | . . 1 4 . 5 19 5 2 7 . . . Special . | . . . . . . . . . . . . . Kinetic 304 | . 26 64 22 . 16 12 67 43 43 . 11 . Thermal 408 | . 6 63 26 . 28 26 102 58 54 42 . 3 Explosive 43 | . . 1 4 . 5 19 5 2 7 . . . Electromagnetic 8 | . . . . . . . . . . 8 . . Robot Hit Streak 38 | . 4 9 10 . 11 10 15 38 16 15 4 . Robot Miss Streak 7 | . 2 3 2 . 2 3 7 2 3 4 1 2 Penetration Max 1 | . . . . . . . . . 1 . . . Secondary Targets 6 | . 2 1 . . . . . . 3 . . . Max Gunslinging Chain 1 | . 1 1 . . . . . . 1 . . . Shots Hit Robots 577 | . 20 81 40 . 37 39 131 89 77 55 8 . Core Hits 355 | . 11 35 27 . 19 33 74 56 69 26 5 . Critical Kills 2 | . . . . . . . . . 1 1 . . Critical Parts Destroyed 2 | . 1 . . . . . . . 1 . . . Critical Strikes 52 | . 1 5 5 . 3 2 14 7 7 7 1 . Burn 31 | . . 5 3 . 2 1 12 4 4 . . . Meltdown 2 | . . . . . . . . . 1 1 . . Destroy 2 | . 1 . . . . . . . 1 . . . Blast 11 | . . . 2 . 1 1 2 3 1 . 1 . Sever 6 | . . . . . . . . . . 6 . . Melee Attacks 25 | . . . . . . . . . . 25 . . Impact . | . . . . . . . . . . . . . Slashing 25 | . . . . . . . . . . 25 . . Piercing . | . . . . . . . . . . . . . Sneak Attacks . | . . . . . . . . . . . . . Combat Hostiles . | . . . . . . . . . . . . . Follow-up Attacks . | . . . . . . . . . . . . . Damage Inflicted 18866 | . 236 1637 1105 . 1003 1950 3363 3872 3464 1866 351 19 Guns 5987 | . 236 745 374 . 426 396 1528 499 1253 530 . . Cannons 6327 | . . 773 406 . 224 194 1122 1956 738 579 335 . Explosions 5674 | . . 118 323 . 353 1360 674 1392 1454 . . . Melee 737 | . . . . . . . . . . 737 . . Ramming 141 | . . 1 2 . . . 39 25 19 20 16 19 Kinetic 5541 | . 199 922 421 . 224 194 1122 1134 990 . 335 . Thermal 7199 | . 37 596 359 . 426 396 1592 1835 1001 957 . . Explosive 4786 | . . 118 323 . 353 1360 610 568 1454 . . . Electromagnetic 462 | . . . . . . . . 310 . 152 . . Impact . | . . . . . . . . . . . . . Slashing 737 | . . . . . . . . . . 737 . . Piercing . | . . . . . . . . . . . . . Highest Corruption 18 | . 1 . . . . . 6 12 18 9 4 5 Average Corruption 7 | . 1 . . . . . 2 9 16 6 3 4 Corruption Purged . | . . . . . . . . . . . . . Corruption Blocked . | . . . . . . . . . . . . . Effects 162 | . 1 . . . . . 42 50 56 8 2 3 Message Errors 44 | . . . . . . . 14 15 13 1 1 . Matter Fused 38 | . . . . . . . 11 7 17 3 . . Heat Flow Errors 22 | . . . . . . . 5 9 7 . 1 . Energy Discharges 15 | . . . . . . . 4 4 5 . . 2 Parts Rejected 4 | . . . . . . . 1 2 1 . . . Parts Fused 1 | . . . . . . . . . 1 . . . Data Loss (minor) 19 | . 1 . . . . . 3 6 7 2 . . Data Loss (major) 1 | . . . . . . . . 1 . . . . Misfires 3 | . . . . . . . 1 2 . . . . Alerts 8 | . . . . . . . 2 3 . 2 . 1 Misdirections 1 | . . . . . . . . . 1 . . . Weapon Failures 6 | . . . . . . . 1 1 4 . . . Overload Shots . | . . . . . . . . . . . . . Overflow Damage 325 | . . 40 . . . 14 69 179 18 . 5 . Projectiles 170 | . . . . . . . 40 125 . . 5 . Explosions 155 | . . 40 . . . 14 29 54 18 . . . Melee . | . . . . . . . . . . . . . Knockbacks 40 | . . 1 3 . 3 1 14 12 1 . 4 1 Impact 1 | . . . . . . . . . . . . 1 Kinetic 37 | . . 1 3 . 3 1 12 12 1 . 4 . Secondary 2 | . . . . . . . 2 . . . . . Self-Inflicted Damage 863 | . . . . . . 265 125 446 9 9 . 9 Shots 28 | . . . . . . 9 6 13 . . . . Rammed 32 | . . 3 1 . . . 3 5 7 6 4 3 Targets Rammed 32 | . . 3 1 . . . 3 5 7 6 4 3 Kicked . | . . . . . . . . . . . . . Crushed . | . . . . . . . . . . . . . Highest Temperature 648 | . 36 183 316 . 490 81 332 648 259 52 158 36 Average Temperature 89 | . 15 45 110 . 187 32 87 158 71 17 90 15 Received Heat Transfer 2522 | . 132 381 459 . 27 135 143 117 522 531 . 75 Effects 26 | . . . 2 . 6 . 3 13 2 . . . Shutdowns 3 | . . . . . . . . 3 . . . . Energy Bleed 1 | . . . . . . . . 1 . . . . Interference 11 | . . . 1 . . . 3 5 2 . . . Matter Decay 1 | . . . 1 . . . . . . . . . Damage (minor) 3 | . . . . . 2 . . 1 . . . . Damage (major) 7 | . . . . . 4 . . 3 . . . . Siege Activations . | . . . . . . . . . . . . . Martial Activations . | . . . . . . . . . . . . . Shielding Activations . | . . . . . . . . . . . . . Robots Disrupted 1 | . . . . . . . . 1 . . . . Combat Hostiles . | . . . . . . . . . . . . . Robots Corrupted . | . . . . . . . . . . . . . Combat Hostiles . | . . . . . . . . . . . . . Parts Fried 4 | . . . . . . . . 4 . . . . Impact Corruptions . | . . . . . . . . . . . . . Robots Melted 6 | . . . . . . . 2 . 2 2 . . Combat Hostiles 6 | . . . . . . . 2 . 2 2 . . Parts Melted 36 | . 1 5 2 . . . 17 3 3 5 . . Heat Transferred 14661 | . 111 1813 999 . 1073 925 4046 2467 1998 1229 . . Parts Sabotaged . | . . . . . . . . . . . . . Parts Stolen . | . . . . . . . . . . . . . Parts Stripped . | . . . . . . . . . . . . . Power Chain Reactions 1 | . . . . . . . . 1 . . . . Alert | -11 -10 -9 -8 -7 -7 -7 -6 -5 -5 -4 -3 -3 ------- Run | Yrd Mat Mat Mat Fac DSF Gar Fac Fac Ext Fac Res Tes Maximum Alert Level 2 | . . . 1 . 1 2 1 1 1 2 1 . Low Security (%) 71 | 100 100 100 95 100 71 16 62 49 98 78 69 100 Level 1 22 | . . . 4 . 28 2 37 50 1 20 30 . Level 2 5 | . . . . . . 81 . . . 1 . . Level 3 . | . . . . . . . . . . . . . Level 4 . | . . . . . . . . . . . . . Level 5 . | . . . . . . . . . . . . . High Security . | . . . . . . . . . . . . . Max Security . | . . . . . . . . . . . . . Sterilizations 1 | . . . . . 1 . . . . . . . Peak Influence 643 | . 111 133 218 48 257 643 354 380 252 465 243 75 Initial 337 | . . 33 22 48 9 192 337 108 159 123 243 75 Average 156 | . 52 56 102 32 124 489 186 176 57 105 178 41 Influence Increases 5134 | . 183 574 366 5 257 491 847 763 649 883 71 45 Destroy 0b10 Robot/C 2660 | . 140 440 240 . 180 360 420 320 300 220 40 . Destroy 0b10 Robot/NC 105 | . . 15 5 . . . 20 20 40 5 . . Destroy Leader 624 | . 30 106 62 . 40 30 154 90 42 60 10 . Allied During Kill 9 | . . . . . . . . . 9 . . . Successful Hack 61 | . 12 . . 5 . . 7 16 14 7 . . Disable Machine 390 | . . . 30 . 15 . 105 165 15 30 15 15 Anti-Garrison Action 150 | . . . . . . . . . . 150 . . Destroy Structure 445 | . 1 13 29 . 22 56 126 122 64 6 6 . Partial Spotted 60 | . . . . . . . . . 15 45 . . Lose Combat Pursuer 630 | . . . . . . 45 15 30 150 360 . 30 Influence Decreases 5134 | . 102 600 314 99 13 105 1268 658 724 670 402 179 Entered New Map 1207 | . . 48 33 59 4 65 306 114 168 129 222 59 Time Decay 2928 | . 102 502 261 40 . . 742 424 326 301 160 70 Lost Part 810 | . . 50 20 . 9 40 70 120 191 240 20 50 Lost Ally 39 | . . . . . . . . . 39 . . . Purge Threat 150 | . . . . . . . 150 . . . . . Squads Dispatched 38 | . 2 2 1 . 2 . 11 4 3 7 1 5 Investigation 5 | . 2 . 1 . . . 1 . . . . 1 Extermination 14 | . . . . . . . 7 4 . 2 1 . Reinforcement 14 | . . 2 . . 2 . 3 . 3 2 . 2 Assault 4 | . . . . . . . . . . 2 . 2 Garrison 1 | . . . . . . . . . . 1 . . Intercept . | . . . . . . . . . . . . . Searches Triggered . | . . . . . . . . . . . . . Construction Impeded 3 | . . . . . . . . . 3 . . . Haulers Reinforced . | . . . . . . . . . . . . . Active Scanning Responses . | . . . . . . . . . . . . . Cargo Convoy Interrupts 1 | . . . . . . . . 1 . . . . Stealth | -11 -10 -9 -8 -7 -7 -7 -6 -5 -5 -4 -3 -3 --------- Run | Yrd Mat Mat Mat Fac DSF Gar Fac Fac Ext Fac Res Tes Distress Signals 11 | . . 3 . . . . 2 1 2 . . 3 Communications Jammed . | . . . . . . . . . . . . . Distress Signals . | . . . . . . . . . . . . . Times Spotted 251 | . 7 36 12 . 9 20 29 27 31 46 5 29 Peak Tracking Total 24 | . 3 6 7 . 3 10 4 6 7 16 2 24 Tactical Retreats 16 | . . . . . . 1 1 2 4 6 . 2 Traps | -11 -10 -9 -8 -7 -7 -7 -6 -5 -5 -4 -3 -3 ------- Run | Yrd Mat Mat Mat Fac DSF Gar Fac Fac Ext Fac Res Tes Traps Triggered 9 | . 2 . 1 . 2 . 3 . 1 . . . Indirectly . | . . . . . . . . . . . . . Trap Hack Attempts . | . . . . . . . . . . . . . Triggered . | . . . . . . . . . . . . . Disarmed . | . . . . . . . . . . . . . Reprogrammed . | . . . . . . . . . . . . . Reused . | . . . . . . . . . . . . . Traps Extracted . | . . . . . . . . . . . . . Installed . | . . . . . . . . . . . . . Triggered . | . . . . . . . . . . . . . Machines | -11 -10 -9 -8 -7 -7 -7 -6 -5 -5 -4 -3 -3 ---------- Run | Yrd Mat Mat Mat Fac DSF Gar Fac Fac Ext Fac Res Tes Machines Disabled 29 | . . . 2 . 1 . 7 11 3 3 1 1 Max in Single Turn 6 | . . . 1 . 1 . 4 6 1 1 1 1 Garrison Access 2 | . . . . . . . . . . 1 . 1 Garrison Relay 1 | . . . . . . 1 . . . . . . Machines Repaired . | . . . . . . . . . . . . . Machines Dismantled . | . . . . . . . . . . . . . Machines Sabotaged . | . . . . . . . . . . . . . Overloaded Fab Kills . | . . . . . . . . . . . . . Hacking | -11 -10 -9 -8 -7 -7 -7 -6 -5 -5 -4 -3 -3 --------- Run | Yrd Mat Mat Mat Fac DSF Gar Fac Fac Ext Fac Res Tes Machines Accessed 21 | . 2 . 1 1 . . 8 3 4 1 . 1 Terminals 18 | . 2 . 1 1 . . 7 1 4 1 . 1 Fabricators . | . . . . . . . . . . . . . Repair Stations 1 | . . . . . . . 1 . . . . . Recycling Units 1 | . . . . . . . . 1 . . . . Scanalyzers 1 | . . . . . . . . 1 . . . . Garrison Access . | . . . . . . . . . . . . . Total Hacks 59 | . 5 . 4 2 . . 18 8 15 5 . 2 Successful 15 | . 2 . 1 1 . . 4 4 2 1 . . Failed 44 | . 3 . 3 1 . . 14 4 13 4 . 2 Catastrophic 17 | . . . . . . . 7 . 7 2 . 1 Database Lockouts . | . . . . . . . . . . . . . Manual 20 | . 4 . 1 . . . 10 . . 5 . . Terminals 47 | . 5 . 4 2 . . 13 1 15 5 . 2 Fabricators . | . . . . . . . . . . . . . Repair Stations 5 | . . . . . . . 5 . . . . . Recycling Units 1 | . . . . . . . . 1 . . . . Scanalyzers 6 | . . . . . . . . 6 . . . . Garrison Access . | . . . . . . . . . . . . . Terminal Hacks 11 | . 2 . 1 1 . . 3 1 2 1 . . Record 1 | . . . . . . . 1 . . . . . Open Door 3 | . . . . . . . . 1 2 . . . Open DSF 1 | . . . . 1 . . . . . . . . Branch Access Points 1 | . 1 . . . . . . . . . . . Unreport Threat 1 | . . . . . . . 1 . . . . . Hauler Manifests 1 | . 1 . . . . . . . . . . . Registered Components 3 | . . . 1 . . . 1 . . 1 . . Fabricator Hacks . | . . . . . . . . . . . . . Repair Station Hacks 1 | . . . . . . . 1 . . . . . Scan Component 1 | . . . . . . . 1 . . . . . Recycling Unit Hacks 1 | . . . . . . . . 1 . . . . Report Inventory 1 | . . . . . . . . 1 . . . . Scanalyzer 2 | . . . . . . . . 2 . . . . Retrieve Study 2 | . . . . . . . . 2 . . . . Garrison Access Hacks . | . . . . . . . . . . . . . Unauthorized Hacks . | . . . . . . . . . . . . . Terminals . | . . . . . . . . . . . . . Fabricators . | . . . . . . . . . . . . . Repair Stations . | . . . . . . . . . . . . . Recycling Units . | . . . . . . . . . . . . . Scanalyzers . | . . . . . . . . . . . . . Garrison Access . | . . . . . . . . . . . . . Data Cores Recovered . | . . . . . . . . . . . . . Used . | . . . . . . . . . . . . . Hacking Detections 18 | . 2 . 1 . . . 8 1 4 1 . 1 Full Trace Events 3 | . 1 . . . . . 1 . . . . 1 Feedback Events 1 | . . . . . . . . . . . . 1 Corruption 1 | . . . . . . . . . . . . 1 Feedback Blocked . | . . . . . . . . . . . . . Robot Schematics Acquired . | . . . . . . . . . . . . . Robots Built . | . . . . . . . . . . . . . Authchips . | . . . . . . . . . . . . . Time . | . . . . . . . . . . . . . Total Robot Build Rating . | . . . . . . . . . . . . . Part Schematics Acquired . | . . . . . . . . . . . . . Parts Built . | . . . . . . . . . . . . . Authchips . | . . . . . . . . . . . . . Time . | . . . . . . . . . . . . . Total Part Build Rating . | . . . . . . . . . . . . . Part Studies Acquired 2 | . . . . . . . . 2 . . . . Parts Repaired . | . . . . . . . . . . . . . Time . | . . . . . . . . . . . . . Parts Recycled . | . . . . . . . . . . . . . Recycled Matter . | . . . . . . . . . . . . . Retrieved Matter . | . . . . . . . . . . . . . Retrieved Components . | . . . . . . . . . . . . . Parts Scanalyzed . | . . . . . . . . . . . . . Part Schematics Acquired . | . . . . . . . . . . . . . Parts Damaged . | . . . . . . . . . . . . . Bothacking | -11 -10 -9 -8 -7 -7 -7 -6 -5 -5 -4 -3 -3 ------------ Run | Yrd Mat Mat Mat Fac DSF Gar Fac Fac Ext Fac Res Tes Used RIF Installer . | . . . . . . . . . . . . . Robots Hacked . | . . . . . . . . . . . . . Non-combat . | . . . . . . . . . . . . . Combat . | . . . . . . . . . . . . . Robot Hacks Applied . | . . . . . . . . . . . . . Relay Couplers Released 9 | . . . . . . 3 . . . 4 . 2 Machine Destruction 9 | . . . . . . 3 . . . 4 . 2 Fabnet Peak Effective % . | . . . . . . . . . . . . . Robots Rewired . | . . . . . . . . . . . . . Allies Hacked . | . . . . . . . . . . . . . Hacks Repelled . | . . . . . . . . . . . . . Allies | -11 -10 -9 -8 -7 -7 -7 -6 -5 -5 -4 -3 -3 -------- Run | Yrd Mat Mat Mat Fac DSF Gar Fac Fac Ext Fac Res Tes Total Allies 4 | . . . . . . . . . 4 . . . Largest Group 4 | . . . . . . . . . 4 . . . Highest-Rated Group 134 | . . . . . . . . . 134 . . . Highest-Rated Ally 39 | . . . . . . . . . 39 . . . Initial Warlord ECA Mod 10 | . . . . . . 10 10 9 9 8 7 7 Total Orders . | . . . . . . . . . . . . . Ally Attacks 22 | . . . . . . . . . 22 . . . Total Damage 446 | . . . . . . . . . 446 . . . Kills 3 | . . . . . . . . . 3 . . . Allies Corrupted . | . . . . . . . . . . . . . Allies Melted 1 | . . . . . . . . . 1 . . . Intel | -11 -10 -9 -8 -7 -7 -7 -6 -5 -5 -4 -3 -3 ------- Run | Yrd Mat Mat Mat Fac DSF Gar Fac Fac Ext Fac Res Tes Active Infowar (turns) 3853 | . . . 773 81 428 . . 916 1000 655 . . Optics 1331 | . . . . . . . . 913 418 . . . Sensors 2568 | . . . . . . . . 913 1000 655 . . Traps 1282 | . . . 773 81 428 . . . . . . . Robot Analysis Total . | . . . . . . . . . . . . . Derelict Logs Recovered . | . . . . . . . . . . . . . Drone Launches . | . . . . . . . . . . . . . Drone Recoveries . | . . . . . . . . . . . . . Exploration | -11 -10 -9 -8 -7 -7 -7 -6 -5 -5 -4 -3 -3 ------------- Run | Yrd Mat Mat Mat Fac DSF Gar Fac Fac Ext Fac Res Tes Turns Passed 12815 | 94 255 1715 835 81 428 895 3834 2019 1259 921 324 155 Spaces Moved 4816 | 55 124 628 306 37 95 244 1145 745 593 588 194 62 Core 372 | 3 . . . . . . . . 238 104 . 27 Treads 3902 | 52 124 444 306 37 95 244 1145 745 334 147 194 35 Legs 184 | . . 184 . . . . . . . . . . Wheels . | . . . . . . . . . . . . . Hover . | . . . . . . . . . . . . . Flight 358 | . . . . . . . . . 21 337 . . Fastest Speed 40 | 50 160 160 225 225 225 330 250 217 40 40 145 50 Average Speed 225 | 154 160 227 226 225 283 330 303 232 171 120 145 111 Slowest Speed 480 | 160 160 320 240 225 330 330 410 285 480 360 145 150 Overloaded Moves . | . . . . . . . . . . . . . Propulsion Burnouts . | . . . . . . . . . . . . . Robots Hopped 13 | . . . . . . . . . . 13 . . Potential Cave-ins . | . . . . . . . . . . . . . Cave-ins Triggered 1 | . . . . . . . . . 1 . . . Exploration Rate (%) 30 | 5 25 57 28 1 81 38 33 17 67 18 4 20 Regions Visited 12 Branch Regions 2 Pre-discovered Areas . | . . . . . . . . . . . . . Known Exits Taken 3 | . . . . 1 . . . 1 . 1 . . Unknown Exits Taken 7 | 1 1 1 1 . . . 1 . 1 . 1 . Scrap Searched . | . . . . . . . . . . . . . Spaces Dug 15 | . . . 13 . . . 1 . 1 . . . Terrain Destroyed 424 | . . 12 32 . 25 50 168 68 63 3 3 . Melee . | . . . . . . . . . . . . . Projectile 40 | . . 5 1 . . 2 14 9 3 3 3 . AOE 384 | . . 7 31 . 25 48 154 59 60 . . . Terrain Rammed . | . . . . . . . . . . . . . Walls Destroyed . | . . . . . . . . . . . . . Machines Disabled . | . . . . . . . . . . . . . Actions | -11 -10 -9 -8 -7 -7 -7 -6 -5 -5 -4 -3 -3 --------- Run | Yrd Mat Mat Mat Fac DSF Gar Fac Fac Ext Fac Res Tes Total 5938 | 61 148 777 392 36 215 285 1317 920 719 701 224 143 Wait 191 | . 3 13 14 . 31 . 17 79 6 19 6 3 Move 4777 | 54 123 627 305 36 94 240 1144 744 592 563 193 62 Hop 11 | . . . . . . . . . . 11 . . Pick Up 100 | 1 3 24 15 . 17 3 15 6 5 9 2 . Fast Attach 55 | 6 . 5 4 . 1 . 4 4 11 16 2 2 Attach 62 | . . 4 2 . 3 5 7 16 11 10 4 . Detach 16 | . . 2 1 . 2 . 1 1 3 5 1 . Swap 75 | . 2 17 13 . 12 4 12 6 5 4 . . Drop 81 | . 1 17 11 . 23 2 11 2 7 6 1 . Fire 425 | . 16 65 26 . 28 31 103 57 59 27 11 2 Melee 25 | . . . . . . . . . . 25 . . Ram 14 | . . . . . . . . . 6 6 . 2 Kick . | . . . . . . . . . . . . . Crush 18 | . . 3 1 . . . 3 5 1 . 4 1 Escape Stasis 88 | . . . . . 4 . . . 13 . . 71 Rewire . | . . . . . . . . . . . . . Trap . | . . . . . . . . . . . . . Miscellaneous . | . . . . . . . . . . . . . Route ------- -11/Scrapyard -10/Materials (discovered 3 exits: [*Mat] / *Min x2) -9/Materials (discovered 2 exits: *Mat x2) -8/Materials (discovered 2 exits: *Fac / [*Sto]) -7/Factory -7/DSF -7/Garrison (discovered 2 exits: *Fac x2) -6/Factory -5/Factory -5/Extension (discovered 2 exits: *Fac / [*Cet]) -4/Factory -3/Research -3/Testing History --------- Turn | Location | Event 30 | -11/Scrapyard | Discovered new exit (range 16) 95 | -11/Scrapyard | Entered Materials 102 | -10/Materials | Identified exit to Mines 290 | -10/Materials | Discovered new exit (range 12) 311 | -10/Materials | Build established: Mutant 350 | -10/Materials | Entered another Materials area 350 | -9/Materials | Evolved 2 slots: Propulsion x1, Utility x1 529 | -9/Materials | Discovered new exit (range 15) 593 | -9/Materials | Lost 3 parts (2n1w) 909 | -9/Materials | Build established: Scavenger-Mutant 1561 | -9/Materials | Discovered new exit (range 16) 2065 | -9/Materials | Entered another Materials area 2065 | -8/Materials | Evolved 2 slots: Utility x2 2390 | -8/Materials | Destroyed 8 combat bots 2436 | -8/Materials | Build established: Mutant 2586 | -8/Materials | Discovered new exit (range 9) 2882 | -8/Materials | Discovered new exit (range 9) 2900 | -8/Materials | Entered Factory 2900 | -7/Factory | Evolved 2 slots: Utility x2 2981 | -7/Factory | Identified exit to DSF 2981 | -7/Factory | Entered DSF 3057 | -7/DSF | Additional patrols routed to DSF 3284 | -7/DSF | Discovered new exit (range 15) 3294 | -7/DSF | Sterilization system engaged 3312 | -7/DSF | Found Powered Armor 3314 | -7/DSF | Ambient heat levels rising (+10) 3315 | -7/DSF | Found Powered Armor 3319 | -7/DSF | Found Powered Armor 3329 | -7/DSF | Ambient heat levels rising (+10) 3344 | -7/DSF | Ambient heat levels rising (+10) 3359 | -7/DSF | Ambient heat levels rising (+10) 3374 | -7/DSF | Ambient heat levels rising (+10) 3389 | -7/DSF | Ambient heat levels rising (+10) 3404 | -7/DSF | Ambient heat levels rising (+10) 3409 | -7/DSF | Entered Garrison 3493 | -7/Garrison | Triggered checkpoint 3527 | -7/Garrison | Triggered checkpoint 3596 | -7/Garrison | Lost 3 parts (1n1u1w) 3601 | -7/Garrison | Destroyed 8 combat bots 3626 | -7/Garrison | Triggered checkpoint 3717 | -7/Garrison | Build established: Scavenger-Mutant 3781 | -7/Garrison | Discovered new exit (range 11) 3814 | -7/Garrison | Attempted to access garrison exit controls, blocked by remote lockdown 3869 | -7/Garrison | Triggered checkpoint 4143 | -7/Garrison | Triggered checkpoint 4185 | -7/Garrison | Build established: Mutant 4275 | -7/Garrison | Discovered new exit (range 10) 4304 | -7/Garrison | Entered Factory 4304 | -6/Factory | Evolved 2 slots: Power x1, Utility x1 4566 | -6/Factory | Found Prototype Launcher 4566 | -6/Factory | Identified Scatter Rocket Array 5181 | -6/Factory | Build established: Scavenger-Mutant 5819 | -6/Factory | Lost 4 parts (1n3u) 6266 | -6/Factory | Build established: Mutant 7432 | -6/Factory | Build established: Hacker-Mutant 8098 | -6/Factory | Discovered new exit (range 5) 8138 | -6/Factory | Entered another Factory area 8138 | -5/Factory | Evolved 2 slots: Propulsion x1, Utility x1 9028 | -5/Factory | Cargo convoy interrupted 9206 | -5/Factory | Lost 11 parts (3p3n3u2w) 9510 | -5/Factory | System corruption reached 10% 9538 | -5/Factory | Build established: Hacker-Skirmisher 9864 | -5/Factory | Discovered new exit (range 5) 9868 | -5/Factory | Identified exit to Extension 10046 | -5/Factory | Build established: Skirmisher 10157 | -5/Factory | Entered Extension 10422 | -5/Extension | Rescued a captive Derelict 10422 | -5/Extension | Rescued a captive Derelict 10452 | -5/Extension | Rescued a captive Derelict 10453 | -5/Extension | Rescued a captive Derelict 10575 | -5/Extension | Crushed by falling debris 10699 | -5/Extension | Build established: Mutant 10866 | -5/Extension | Spotted B-75 Beast 10881 | -5/Extension | Destroyed B-75 Beast 10919 | -5/Extension | Spotted B-75 Beast 10929 | -5/Extension | Lost 4 allies 10931 | -5/Extension | Destroyed B-75 Beast 10960 | -5/Extension | Lost 7 parts (4n1u2w) 11082 | -5/Extension | Disrupted transfer network 11101 | -5/Extension | Core integrity fell below 50% 11113 | -5/Extension | Lost 3 parts (1p2w) 11251 | -5/Extension | Lost 7 parts (2p1n1u3w) 11344 | -5/Extension | Core integrity fell below 20% 11394 | -5/Extension | Discovered new exit (range 16) 11394 | -5/Extension | Discovered new exit (range 16) 11416 | -5/Extension | Entered Factory 11416 | -4/Factory | Evolved 2 slots: Propulsion x1, Weapon x1 11467 | -4/Factory | Discovered new exit (range 4) 11468 | -4/Factory | Identified exit to Research 11943 | -4/Factory | Garrison activated, responded to threat 12066 | -4/Factory | Lost 8 parts (1p6u1w) 12230 | -4/Factory | Lost 13 parts (2p2n5u4w) 12269 | -4/Factory | Core integrity fell below 50% 12319 | -4/Factory | Core integrity fell below 20% 12337 | -4/Factory | Entered Research 12337 | -3/Research | Evolved 2 slots: Utility x2 12606 | -3/Research | Discovered new exit (range 13) 12661 | -3/Research | Entered Testing 12736 | -3/Testing | Core integrity fell below 50% 12743 | -3/Testing | Scanned by Researcher 12762 | -3/Testing | Lost 3 parts (1n2w) 12801 | -3/Testing | Core integrity fell below 20% 12816 | -3/Testing | Destroyed by H-77 Assassin with Coil Gun Last Messages --------------- 12810_ K-01 Serf cleans the Gravity Sphere. 12811_ Held in stasis. 12811_ K-01 Serf collects debris. 12811_ Held in stasis. 12811_ C-55 Analyst is analyzing... 12812_ K-01 Serf cleans the Gravity Sphere. 12812_ Slug penetrates Gravity Sphere. 12812_ Slug penetrates C-55 Analyst. 12812_ Held in stasis. 12812_ C-55 Analyst is analyzing... 12813_ Penetrated by Slug. 12813_ Slug penetrates Gravity Sphere. 12813_ Penetrated by Slug. 12814_ K-01 Serf cleans the Gravity Sphere. 12815_ Held in stasis. 12815_ C-55 Analyst is analyzing... 12815_ Held in stasis. 12816_ Slug penetrates Gravity Sphere. [Achievement: 10k Club] [Achievement: Just Browsing] Map ----- +----------------------------------------------------+ | ##+########??#"##????????????????????????????????? | | #??# #????????????????????????????????? | | ? ###" "##??????????????????????????????? | | ??? ##" "#??????????????????????????????? | | ???? ## """#????######????????????????????? | | ?????# ## "#???? """ #?#??????????????????? | | ?????# ## #????""T""# #??????????????????? | | ###### ##"/#########"" ""# #### ?????????????? | | "%%[! ]]] ?????????????? | | %* " [] ]]] ????????????? | | ]] ????????????? | | " ??????????????? | | ######+############# """ """ "T??????????????? | | # #????????# """ """ """ ???????????? | | " """ #????????# """ """ / ?????????? | | T " """ #????????# #??????????? | | " "" """ #????????# """ """ ##????????????????? | | # G """ #????????# """ """ #?????????????????? | | # "" """ #????????# """k""" #?????????????????? | | # " #????????#w h gggb #?????????????????? | | # !?????? ?# """g""" #?????????????????? | | ##########??????? # """b""" #?????????????????? | | ?????????????????? R """c""" #?????????????????? | | ???????????????????# hhgghggk #?????????????????? | | ???????????????????# """cc""g #?????????????????? | | ???????????????????# h"""@"""k!#?????????????????? | | ???????????????????# """c""" #?????????????????? | | ???????????????????# uR khk #?????????????????? | | ???????????????????# """ """ i#?????????????????? | | ???????????????????# """ """k ????????????????? | | ???????????????????# """ """ ???????????????? | | ???????????????????# ???????????????? | | ???????????????????#?? ??A ??????????????? | | ??????????????????????####T#u??????#?????????????? | | ??????????????????????????#??????????????????????? | | ?????????????????????????????????????????????????? | | ?????????????????????????????????????????????????? | | ?????????????????????????????????????????????????? | | ?????????????????????????????????????????????????? | | ?????????????????????????????????????????????????? | | ?????????????????????????????????????????????????? | | ?????????????????????????????????????????????????? | | ?????????????????????????????????????????????????? | | ?????????????????????????????????????????????????? | | ?????????????????????????????????????????????????? | | ?????????????????????????????????????????????????? | | ?????????????????????????????????????????????????? | | ?????????????????????????????????????????????????? | | ?????????????????????????????????????????????????? | | ?????????????????????????????????????????????????? | +----------------------------------------------------+ Best States ------------- Heat Dissipation 119 Energy Generation 32 Energy Capacity 525 Matter Stores 300 Matter Capacity 300 Sight Range 22 Robot Scan Range 16 Terrain Scan Density 10 Base Temperature (-) 200 EM Shielding 2 Armor Coverage 1200 Resistance: KI 25 Resistance: TH 10 Propulsion Shielding 66 Evasion (%) 62 Targeting Accuracy 20 Melee Accuracy 6 Target Analysis 6 Core Analysis 6 Recoil Reduction 4 Offensive Hacking 12 Defensive Hacking 20 Authchip Count 2 Item Schematics ----------------- None Robot Schematics ------------------ None Fabricated ------------ Nothing Repaired ---------- Nothing Studied --------- Magnetic Acceleration Cannon | -5/Factory | Hacked Arm. Treads | -5/Factory | Hacked Alien Tech Used ----------------- None Achievements -------------- 10k Club Construction Begets Destruction Dangerous Findings Hot Goods I Laugh At Your Crits Just Browsing Window Shopping Challenges ------------ None Game ------ Seed RocketMappingMatrix Manual? 0 Play Time 02:13:01 Cumulative 27.4 hours Start 2025.10.25 @ 23:32:40 End 2025.10.26 @ 02:53:20 Sessions 1 Manual Loads 0 Difficulty Rogue Special Mode None Game No. 41 Rogue 41 Adventurer 0 Explorer 0 Win Type - Total 0 Types 0/0/0/0/0/0/0/0/0/0 Lore% 10 Gallery% 26 Achievement% 16 Wizard Run 0 Options --------- Layout 0 ASCII 0 Keyboard 1 Movement Arrows Keybinds 0 Fullscreen 1 Font 24/Smallcaps Map View 76x50 Zoom Use 0% Tactical HUD 1 Map Filters NONE Filters NONE Steam 1 RUN: 2bd0553f-7387-4a8c-ac17-800eae183399